bitfinex-derivatives/quotes_BTCF0:USTF0_20250327
["timestamp","ask_amount","ask_price","bid_price","bid_amount"]
[1743069901541,0.17835091,87563.0,87562.0,0.179831]
[1743069904147,0.17835091,87563.0,87562.0,0.38500202]
[1743069906252,0.17835091,87563.0,87562.0,0.27081102]
[1743069907548,0.17835091,87563.0,87562.0,0.06564]
[1743069909452,0.17839776,87563.0,87562.0,0.06564]
[1743069912360,0.53919776,87563.0,87562.0,0.03244]
[1743069912648,0.53919776,87563.0,87562.0,0.0318]
[1743069912852,0.53919776,87563.0,87562.0,0.0324]
[1743069913852,0.53919776,87563.0,87562.0,0.0006]
[1743069916353,0.53919776,87563.0,87558.0,1.5]
[1743069916354,0.1141949,87559.0,87558.0,1.5]
[1743069916556,0.0571005,87555.0,87551.0,0.0325]
[1743069916758,0.4750041,87552.0,87551.0,0.0331]
[1743069917159,0.5414441,87552.0,87551.0,0.0331]
[1743069917456,0.5414441,87552.0,87551.0,0.0006]
[1743069917650,0.5414441,87552.0,87551.0,0.0327]
[1743069918448,0.55269417,87552.0,87551.0,0.0327]
[1743069919664,0.55269417,87552.0,87551.0,0.0633]
[1743069920959,0.55269417,87552.0,87551.0,0.0627]
[1743069925662,0.51969417,87552.0,87551.0,0.0627]
[1743069926661,0.5084441,87552.0,87551.0,0.0627]
[1743069926862,0.4764441,87552.0,87551.0,0.1769054]
[1743069927362,0.4764441,87552.0,87551.0,1.6775054]
[1743069927556,0.4764441,87552.0,87551.0,1.5633]
[1743069930269,0.4764441,87552.0,87551.0,0.0633]
[1743069932064,0.4764441,87552.0,87551.0,0.1775054]
[1743069932573,0.4764441,87552.0,87551.0,0.078111]
[1743069932764,0.4764441,87552.0,87551.0,0.1923164]
[1743069933272,0.4764441,87552.0,87551.0,0.078111]
[1743069933665,0.4764441,87552.0,87551.0,0.1917164]
[1743069933863,0.4764441,87552.0,87551.0,0.1923164]
[1743069936771,0.4764441,87552.0,87551.0,0.1775054]
[1743069937475,0.00144,87552.0,87551.0,0.2896254]
[1743069937669,0.1712957,87558.0,87557.0,0.1141976]
[1743069937976,0.1727357,87558.0,87557.0,1.6148376]
[1743069938173,0.0570981,87558.0,87557.0,1.6768376]
[1743069938378,0.1713718,87560.0,87559.0,0.1141949]
[1743069938676,0.0586169,87560.0,87559.0,0.1147949]
[1743069938872,0.0586169,87560.0,87559.0,0.2103949]
[1743069940776,0.0571769,87560.0,87559.0,0.2103949]
[1743069941482,0.0586169,87560.0,87559.0,0.2103949]
[1743069946283,0.1157136,87560.0,87559.0,0.2103949]
[1743069946582,0.00152,87560.0,87559.0,0.2103949]
[1743069946984,0.1142736,87560.0,87559.0,0.2103949]
[1743069947385,0.1157136,87560.0,87559.0,0.2103949]
[1743069956686,0.1458136,87560.0,87559.0,0.2103949]
[1743069956887,0.1458136,87560.0,87559.0,0.1780949]
[1743069961295,0.1776136,87560.0,87559.0,0.1780949]
[1743069961791,0.1458136,87560.0,87559.0,0.1780949]
[1743069962389,0.1157136,87560.0,87559.0,0.19292472]
[1743069962789,0.00144,87560.0,87559.0,1.6780949]
[1743069963098,4.685e-05,87563.0,87559.0,1.6780949]
[1743069963099,4.685e-05,87563.0,87562.0,0.114191]
[1743069963296,0.17133545,87563.0,87562.0,0.114831]
[1743069963487,0.17277545,87563.0,87562.0,0.181031]
[1743069963683,0.0571682,87574.0,87564.0,0.0570938]
[1743069963884,0.0571682,87574.0,87573.0,0.1141767]
[1743069963885,8e-05,87574.0,87573.0,0.1141767]
[1743069964087,0.01130462,87582.0,87573.0,0.1141767]
[1743069964088,0.1,87600.0,87584.0,0.1141624]
[1743069964284,0.1452428,87599.0,87598.0,0.1141441]
[1743069964589,0.1142254,87597.0,87596.0,0.0570727]
[1743069964889,0.1141454,87597.0,87596.0,0.0570727]
[1743069965092,0.1152254,87597.0,87596.0,1.5577527]
[1743069965300,0.1141454,87597.0,87596.0,1.5570727]
[1743069968203,0.1473454,87597.0,87596.0,1.5570727]
[1743069968594,0.1776454,87597.0,87596.0,1.5570727]
[1743069969300,0.1776454,87597.0,87596.0,0.0570727]
[1743069970294,0.5384454,87597.0,87596.0,0.0006]
[1743069970495,0.1141532,87591.0,87590.0,0.0001713]
[1743069970698,0.11519321,87591.0,87590.0,0.0007713]
[1743069971103,0.11519321,87591.0,87590.0,0.0001713]
[1743069971299,0.17769321,87591.0,87590.0,0.0001713]
[1743069971695,0.17769321,87591.0,87590.0,0.0008113]
[1743069972599,0.17769321,87591.0,87590.0,0.0001713]
[1743069973001,0.17769321,87591.0,87590.0,0.0007713]
[1743069973706,0.17769321,87591.0,87590.0,0.1149258]
[1743069974000,0.17769321,87591.0,87590.0,0.0007713]
[1743069974601,0.17769321,87591.0,87590.0,0.1149258]
[1743069975509,0.17769321,87591.0,87590.0,0.0007713]
[1743069975711,0.17769321,87591.0,87590.0,0.1143258]
[1743069976009,0.11519321,87591.0,87590.0,0.1153658]
[1743069976310,0.11519321,87591.0,87590.0,0.1456658]
[1743069977707,0.11519321,87591.0,87590.0,1.6456658]
[1743069979302,0.11519321,87591.0,87590.0,1.6781658]
[1743069979713,0.11519321,87591.0,87590.0,1.7081658]
[1743069980305,0.11519321,87591.0,87590.0,1.8203658]
[1743069980510,0.14539321,87591.0,87590.0,1.8203658]
[1743069982005,0.14539321,87591.0,87590.0,1.7900658]
[1743069982206,0.14539321,87591.0,87590.0,1.7901058]
[1743069982410,0.17829321,87591.0,87590.0,0.2901058]
[1743069982608,0.06414001,87591.0,87570.0,0.0570901]
[1743069982812,0.1141728,87576.0,87575.0,0.4762937]
[1743069984004,0.1141728,87576.0,87575.0,0.5392937]
[1743069986805,0.0570831,87582.0,87577.0,0.1141702]
[1743069987113,0.17265201,87582.0,87581.0,0.114165]
[1743069987316,0.11556891,87582.0,87581.0,0.114765]
[1743069987516,0.11556891,87582.0,87581.0,0.209565]
[1743069987719,0.17265271,87582.0,87581.0,0.209565]
[1743069988203,0.17265271,87582.0,87581.0,1.709565]
[1743069993017,0.17265271,87582.0,87581.0,0.209565]
[1743069995324,0.00140001,87582.0,87581.0,0.209565]
[1743069995614,0.36088,87585.0,87584.0,0.1141624]
[1743069995823,0.3608,87585.0,87584.0,0.1147624]
[1743069996026,0.1141588,87587.0,87586.0,0.1141597]
[1743069996318,0.1141588,87587.0,87586.0,0.1148397]
[1743069996524,0.1141588,87587.0,87586.0,0.2897397]
[1743069997312,0.1141588,87587.0,87586.0,0.30117113]
[1743069998119,0.1141588,87587.0,87586.0,0.2897397]
[1743070001926,0.1141588,87587.0,87586.0,0.2894997]
[1743070002115,0.1154788,87587.0,87586.0,0.2894997]
[1743070006126,0.00132,87587.0,87586.0,0.66545181]
[1743070006322,0.1462479,87596.0,87595.0,0.114148]
[1743070006639,0.1725781,87597.0,87596.0,0.0570733]
[1743070006822,0.1738981,87597.0,87596.0,0.0576733]
[1743070007026,0.1725381,87597.0,87596.0,0.0576733]
[1743070007227,0.2046381,87597.0,87596.0,0.0576733]
[1743070007631,0.1725381,87597.0,87596.0,0.0576733]
[1743070008433,0.00132,87597.0,87596.0,0.1701933]
[1743070008733,0.00017064,87599.0,87598.0,0.1141441]
[1743070009034,0.00113065,87599.0,87598.0,0.1147441]
[1743070009633,0.00113065,87599.0,87598.0,1.6147441]
[1743070009829,0.00017064,87599.0,87598.0,1.6147441]
[1743070010139,0.00017064,87599.0,87598.0,1.6261826]
[1743070010529,0.00017064,87599.0,87598.0,1.6147441]
[1743070011532,0.114121,87616.0,87615.0,0.1141207]
[1743070011837,0.1145194,87617.0,87616.0,0.1141207]
[1743070012039,0.11555941,87617.0,87616.0,0.1147207]
[1743070012428,0.1145194,87617.0,87616.0,0.1147207]
[1743070012631,0.1467194,87617.0,87616.0,0.1147207]
[1743070013237,0.14775941,87617.0,87616.0,0.1147207]
[1743070013740,0.1467194,87617.0,87616.0,0.1147207]
[1743070014038,0.18047941,87617.0,87616.0,0.1147207]
[1743070014631,0.18047941,87617.0,87616.0,0.2269207]
[1743070017144,0.00136001,87617.0,87616.0,0.2269207]
[1743070017445,0.0004,87617.0,87616.0,0.2269207]
[1743070018543,0.0004,87617.0,87616.0,1.7269207]
[1743070018742,0.0004,87617.0,87616.0,1.73545007]
[1743070019242,0.0004,87617.0,87616.0,1.76625007]
[1743070019636,0.0004,87617.0,87616.0,1.77789659]
[1743070019844,0.0004,87617.0,87616.0,1.84069659]
[1743070021643,0.0004,87617.0,87616.0,1.72849659]
[1743070021948,0.1145194,87617.0,87616.0,0.0625]
[1743070022137,0.11555941,87617.0,87616.0,0.1760207]
[1743070022339,0.20975941,87617.0,87616.0,0.1770207]
[1743070026445,0.20975941,87617.0,87616.0,0.1462207]
[1743070028747,0.57055941,87617.0,87616.0,0.1462207]
[1743070029655,0.57055941,87617.0,87616.0,0.1774207]
[1743070029840,0.57055941,87617.0,87616.0,0.0633]
[1743070032146,0.57055941,87617.0,87616.0,0.0321]
[1743070036252,0.57055941,87617.0,87616.0,0.001]
[1743070036452,0.1141246,87613.0,87612.0,0.0307]
[1743070036758,0.11516461,87613.0,87612.0,0.0307]
[1743070036951,0.1141285,87610.0,87609.0,0.0302]
[1743070037144,0.11508851,87610.0,87609.0,0.0308]
[1743070037350,0.14788851,87610.0,87609.0,0.0308]
[1743070038156,0.14788851,87610.0,87609.0,0.0006]
[1743070038358,0.14788851,87610.0,87595.0,1.5]
[1743070038359,0.1141298,87609.0,87602.0,0.23491283]
[1743070038559,0.11508981,87609.0,87608.0,0.0007712]
[1743070038759,0.17848981,87609.0,87608.0,0.0007712]
[1743070043658,0.17848981,87609.0,87608.0,0.0001712]
[1743070044162,0.53928981,87609.0,87608.0,0.0008112]
[1743070044458,0.53928981,87609.0,87608.0,0.0001712]
[1743070049068,0.53928981,87609.0,87608.0,0.0007712]
[1743070052879,0.5383298,87609.0,87608.0,0.0001712]
[1743070055076,0.5702298,87609.0,87608.0,0.0001712]
[1743070057774,0.57118981,87609.0,87608.0,0.0001712]
[1743070058672,0.57118981,87609.0,87608.0,0.0007712]
[1743070059080,0.57118981,87609.0,87608.0,0.0001712]
[1743070059671,0.57118981,87609.0,87608.0,0.0332712]
[1743070059871,0.57118981,87609.0,87608.0,0.0338712]
[1743070060470,0.57118981,87609.0,87608.0,0.0332712]
[1743070065883,0.21038981,87609.0,87608.0,0.0332712]
[1743070066183,0.57118981,87609.0,87608.0,0.0338712]
[1743070066378,0.21038981,87609.0,87608.0,0.0338712]
[1743070066583,0.57118981,87609.0,87608.0,0.0338712]
[1743070068678,0.57118981,87609.0,87608.0,0.0332712]
[1743070071185,0.21038981,87609.0,87608.0,0.0332712]
[1743070071384,0.57118981,87609.0,87608.0,0.0338712]
[1743070071583,0.57118981,87609.0,87608.0,0.0332712]
[1743070074081,0.53838981,87609.0,87608.0,0.0332712]
[1743070074282,0.50648981,87609.0,87608.0,0.0338712]
[1743070075083,0.53798981,87609.0,87608.0,0.0338712]
[1743070078390,0.36176001,87609.0,87608.0,0.1480023]
[1743070078879,0.47588981,87609.0,87608.0,0.1807023]
[1743070079081,0.47588981,87609.0,87608.0,0.19563653]
[1743070079281,0.47588981,87609.0,87608.0,0.19224145]
[1743070084386,0.11508981,87609.0,87608.0,0.19224145]
[1743070095098,8e-05,87611.0,87608.0,0.19224145]
[1743070095099,8e-05,87611.0,87610.0,0.1141285]
[1743070095299,0.00072,87611.0,87610.0,0.1711922]
[1743070095611,0.1141266,87612.0,87611.0,0.1711894]
[1743070095901,0.1147666,87612.0,87611.0,0.2362894]
[1743070096102,0.1141266,87612.0,87611.0,0.2362894]
[1743070103897,0.1141266,87612.0,87611.0,0.3478894]
[1743070104307,0.1465266,87612.0,87611.0,0.3478894]
[1743070107309,0.1141266,87612.0,87611.0,0.3478894]
[1743070107700,0.1141266,87612.0,87611.0,0.36304945]
[1743070107901,0.1141266,87612.0,87611.0,0.3478894]
[1743070108102,0.1141266,87612.0,87611.0,0.363229]
[1743070108706,0.1468266,87612.0,87611.0,0.363229]
[1743070109098,0.1468266,87612.0,87611.0,0.37798233]
[1743070111902,0.1468266,87612.0,87611.0,0.363229]
[1743070114309,0.1792266,87612.0,87611.0,0.363229]
[1743070115908,0.1792266,87612.0,87611.0,0.25159237]
[1743070116104,0.1792266,87612.0,87611.0,0.2362894]
[1743070116526,0.5400266,87612.0,87611.0,0.0006]
[1743070116821,0.1141298,87609.0,87608.0,0.0001712]
[1743070117014,0.1149698,87609.0,87608.0,0.0007712]
[1743070117217,0.1800698,87609.0,87608.0,0.0007712]
[1743070117419,0.1800698,87609.0,87608.0,0.0311712]
[1743070117725,0.1800698,87609.0,87608.0,0.0620712]
[1743070118822,0.1800698,87609.0,87608.0,0.1762023]
[1743070119210,0.1480698,87609.0,87608.0,0.1762023]
[1743070119413,0.00084,87609.0,87608.0,0.1762023]
[1743070119713,0.00084,87609.0,87608.0,1.6762023]
[1743070119917,0.0571442,87610.0,87609.0,0.1711933]
[1743070120115,0.0571442,87610.0,87609.0,0.1718733]
[1743070120324,0.0571442,87610.0,87609.0,0.5945733]
[1743070121322,0.171274,87610.0,87609.0,0.5945733]
[1743070121517,0.171274,87610.0,87609.0,0.2337733]
[1743070122225,0.171274,87610.0,87609.0,0.24875106]
[1743070122723,0.171274,87610.0,87609.0,0.24875147]
[1743070123912,0.171274,87610.0,87609.0,0.2337733]
[1743070126728,0.171274,87610.0,87609.0,0.06258]
[1743070127020,0.171274,87610.0,87609.0,0.03188]
[1743070127021,0.172194,87610.0,87609.0,0.03188]
[1743070127226,0.172194,87610.0,87609.0,0.1460098]
[1743070128526,0.172194,87610.0,87609.0,0.03188]
[1743070128729,0.172194,87610.0,87609.0,0.00068]
[1743070129028,0.172194,87610.0,87609.0,0.1148098]
[1743070129822,0.172194,87610.0,87609.0,0.00068]
[1743070131123,0.18361979,87610.0,87609.0,0.00068]
[1743070132121,0.29533979,87610.0,87609.0,0.00068]
[1743070133732,0.1141298,87609.0,87608.0,0.0001712]
[1743070133938,0.1789698,87609.0,87608.0,0.0008512]
[1743070134735,0.5397698,87609.0,87608.0,0.0008512]
[1743070135129,0.5072698,87609.0,87608.0,0.1149823]
[1743070135330,0.4757698,87609.0,87608.0,0.1798823]
[1743070135534,0.1149698,87609.0,87608.0,0.1798823]
[1743070135732,0.1149698,87609.0,87608.0,1.6798823]
[1743070136733,0.1149698,87609.0,87608.0,1.69156649]
[1743070136734,0.1460698,87609.0,87608.0,1.69156649]
[1743070136925,0.00084,87609.0,87608.0,1.69156649]
[1743070137125,0.1141298,87609.0,87608.0,1.74863199]
[1743070137325,0.1149698,87609.0,87608.0,1.74863199]
[1743070139935,0.1149698,87609.0,87608.0,0.04433539]
[1743070140140,0.1454698,87609.0,87608.0,0.1467823]
[1743070140328,0.1785698,87609.0,87608.0,0.0326512]
[1743070140528,0.1785698,87609.0,87608.0,0.1467823]
[1743070141537,0.1454698,87609.0,87608.0,0.1467823]
[1743070141733,0.1149698,87609.0,87608.0,0.1780823]
[1743070143139,0.1479698,87609.0,87608.0,0.1780823]
[1743070143933,0.1479698,87609.0,87608.0,0.18934938]
[1743070146331,0.1479698,87609.0,87608.0,0.0639512]
[1743070146533,0.1789698,87609.0,87608.0,0.0326512]
[1743070149541,0.1789698,87609.0,87608.0,0.0001712]
[1743070150240,0.1789698,87609.0,87608.0,0.0008512]
[1743070152749,0.1789698,87609.0,87608.0,0.0335512]
[1743070158444,0.5389298,87609.0,87608.0,0.0335512]
[1743070158649,0.5398498,87609.0,87608.0,0.0335512]
[1743070160846,0.5398498,87609.0,87608.0,0.04831036]
[1743070161242,0.5398498,87609.0,87608.0,0.0335512]
[1743070164155,0.1790498,87609.0,87608.0,0.0335512]
[1743070164354,0.5389298,87609.0,87608.0,0.0335512]
[1743070164559,0.5397698,87609.0,87608.0,0.0335512]
[1743070174359,0.1141467,87596.0,87595.0,0.27283184]
[1743070174554,0.1141532,87591.0,87571.0,0.47813724]
[1743070174861,0.1141689,87579.0,87571.0,0.47813724]
[1743070175058,0.1141689,87579.0,87578.0,0.41050517]
[1743070175059,0.4749689,87579.0,87578.0,0.41050517]
[1743070175260,0.57456891,87579.0,87578.0,0.41050517]
[1743070175661,0.58607716,87579.0,87578.0,0.41050517]
[1743070176771,0.57456891,87579.0,87578.0,0.41050517]
[1743070177072,0.47616891,87579.0,87578.0,0.52467537]
[1743070177271,0.47616891,87579.0,87578.0,0.1147702]
[1743070177462,0.47616891,87579.0,87578.0,0.1786702]
[1743070177659,0.47716891,87579.0,87578.0,0.1786702]
[1743070178065,0.47616891,87579.0,87578.0,0.1786702]
[1743070178372,0.47816891,87579.0,87578.0,0.1786702]
[1743070178778,0.48016891,87579.0,87578.0,0.1786702]
[1743070179375,0.48016891,87579.0,87578.0,1.5645]
[1743070180278,0.48016891,87579.0,87578.0,1.6786702]
[1743070180680,0.51186891,87579.0,87578.0,1.6786702]
[1743070181378,0.51186891,87579.0,87578.0,1.5645]
[1743070181780,0.51186891,87579.0,87578.0,1.6786702]
[1743070184277,0.51186891,87579.0,87578.0,0.0645]
[1743070184482,0.54306891,87579.0,87578.0,0.0639]
[1743070184682,0.54306891,87579.0,87578.0,0.06454]
[1743070186884,0.51186891,87579.0,87578.0,0.06454]
[1743070187291,0.48016891,87579.0,87578.0,0.1787102]
[1743070190178,0.48016891,87579.0,87578.0,0.06454]
[1743070190390,0.57586891,87579.0,87578.0,0.06454]
[1743070193579,0.21506891,87579.0,87578.0,0.06454]
[1743070193784,0.5746689,87579.0,87578.0,0.06454]
[1743070193981,0.57586891,87579.0,87578.0,0.06454]
[1743070195078,0.57586891,87579.0,87578.0,0.0639]
[1743070195795,0.57586891,87579.0,87578.0,0.0645]
[1743070195996,0.54306891,87579.0,87578.0,0.0645]
[1743070196689,0.18226891,87579.0,87578.0,0.0645]
[1743070196894,0.54306891,87579.0,87578.0,0.0645]
[1743070197280,0.18226891,87579.0,87578.0,0.0645]
[1743070197486,0.54406891,87579.0,87578.0,0.0645]
[1743070197689,0.18326891,87579.0,87578.0,0.0645]
[1743070197890,0.54406891,87579.0,87578.0,0.0645]
[1743070198984,0.18326891,87579.0,87578.0,0.0645]
[1743070199184,0.54406891,87579.0,87578.0,0.0645]
[1743070202295,0.54406891,87579.0,87578.0,0.095]
[1743070202501,0.54406891,87579.0,87578.0,0.2091702]
[1743070202800,0.54406891,87579.0,87578.0,0.095]
[1743070206000,0.54406891,87579.0,87578.0,0.0645]
[1743070207400,0.0570881,87574.0,87565.0,0.114187]
[1743070207600,0.4749793,87571.0,87567.0,0.03]
[1743070207804,0.4749793,87571.0,87570.0,0.0015712]
[1743070207805,0.47637931,87571.0,87570.0,0.0015712]
[1743070208007,0.53947931,87571.0,87570.0,0.0015712]
[1743070208803,0.53947931,87571.0,87570.0,0.0627712]
[1743070208998,0.54147931,87571.0,87570.0,0.0627712]
[1743070210201,0.55316171,87571.0,87570.0,0.0627712]
[1743070210705,0.54147931,87571.0,87570.0,0.1769518]
[1743070210907,0.51147931,87571.0,87570.0,0.1769518]
[1743070211203,0.51247931,87571.0,87570.0,0.1769518]
[1743070211906,0.47937931,87571.0,87570.0,0.1769518]
[1743070213904,0.47937931,87571.0,87570.0,1.6769518]
[1743070214806,0.36520001,87571.0,87570.0,1.6769518]
[1743070215200,0.3638,87571.0,87570.0,1.6769518]
[1743070215895,0.4779793,87571.0,87570.0,1.6769518]
[1743070216099,0.47937931,87571.0,87570.0,1.6769518]
[1743070216500,0.11857931,87571.0,87570.0,1.6769518]
[1743070219412,0.1171793,87571.0,87570.0,1.6769518]
[1743070219613,0.11857931,87571.0,87570.0,1.6769518]
[1743070226820,0.1171793,87571.0,87570.0,1.6769518]
[1743070228419,0.11857931,87571.0,87570.0,1.6769518]
[1743070229323,0.14977931,87571.0,87570.0,1.6769518]
[1743070229708,0.14977931,87571.0,87570.0,1.5627712]
[1743070229915,0.18277931,87571.0,87570.0,1.5627712]
[1743070230111,0.21477931,87571.0,87570.0,0.0627712]
[1743070230616,0.21477931,87571.0,87570.0,1.5015712]
[1743070231223,0.21477931,87571.0,87570.0,0.0015712]
[1743070231524,0.1141923,87561.0,87560.0,0.00045683]
[1743070231715,0.47639231,87561.0,87560.0,1.76185683]
[1743070231910,0.5709323,87561.0,87560.0,0.26185683]
[1743070232122,0.5709323,87561.0,87560.0,0.00185683]
[1743070232923,0.5709323,87561.0,87560.0,0.00285683]
[1743070233223,0.5709323,87561.0,87560.0,0.03425683]
[1743070233620,0.5729323,87561.0,87560.0,0.03325683]
[1743070234227,0.5729323,87561.0,87560.0,0.03425683]
[1743070234429,0.2121323,87561.0,87560.0,0.03425683]
[1743070234721,0.5729323,87561.0,87560.0,0.25425683]
[1743070234917,0.5749323,87561.0,87560.0,0.25325683]
[1743070237422,0.2141323,87561.0,87560.0,0.25325683]
[1743070237626,0.5749323,87561.0,87560.0,0.25325683]
[1743070238618,0.2141323,87561.0,87560.0,0.25325683]
[1743070238820,0.5749323,87561.0,87560.0,0.25325683]
[1743070241330,0.5749323,87561.0,87560.0,0.22185683]
[1743070245251,0.5749323,87561.0,87560.0,0.33605043]
[1743070245561,0.5749323,87561.0,87560.0,0.22185683]
[1743070245951,0.5749323,87561.0,87560.0,0.22045683]
[1743070246142,0.5749323,87561.0,87560.0,0.22113683]
[1743070249637,0.5749323,87561.0,87560.0,0.22045683]
[1743070249846,0.5749323,87561.0,87560.0,0.22105683]
[1743070254260,0.71163036,87561.0,87560.0,0.22105683]
[1743070254457,0.71163036,87561.0,87560.0,0.22045683]
[1743070254956,0.71163036,87561.0,87560.0,0.22189683]
[1743070255545,0.71163036,87561.0,87560.0,0.25279683]
[1743070256844,0.2141323,87561.0,87560.0,0.25279683]
[1743070257142,0.5749323,87561.0,87560.0,0.25279683]
[1743070257347,0.2141323,87561.0,87560.0,0.25279683]
[1743070257538,0.5749323,87561.0,87560.0,0.25279683]
[1743070260344,0.2141323,87561.0,87560.0,0.25279683]
[1743070260540,0.5749323,87561.0,87560.0,0.25279683]
[1743070261347,0.58064437,87561.0,87560.0,0.25279683]
[1743070262245,0.58064437,87561.0,87560.0,0.03279683]
[1743070263051,0.55014437,87561.0,87560.0,0.03135683]
[1743070263540,0.75499753,87561.0,87560.0,0.03135683]
[1743070265049,0.75499753,87561.0,87560.0,0.03195683]
[1743070265239,0.75499753,87561.0,87560.0,0.03135683]
[1743070265548,0.75499753,87561.0,87560.0,0.03195683]
[1743070266139,0.75499753,87561.0,87560.0,0.03135683]
[1743070267549,0.39419749,87561.0,87560.0,0.03135683]
[1743070267741,0.75499749,87561.0,87560.0,0.03195683]
[1743070267945,0.75499749,87561.0,87560.0,0.14615043]
[1743070268247,0.68528546,87561.0,87560.0,0.14615043]
[1743070268440,0.68528546,87561.0,87560.0,0.17785043]
[1743070268744,0.57109316,87561.0,87560.0,0.17785043]
[1743070272850,0.36624,87561.0,87560.0,0.17785043]
[1743070278043,0.00544,87561.0,87560.0,0.17785043]
[1743070278236,0.004,87561.0,87560.0,0.17785043]
[1743070278441,0.00540001,87561.0,87560.0,0.17785043]
[1743070280744,0.3608,87567.0,87566.0,0.1141858]
[1743070280947,8e-05,87570.0,87569.0,0.1141819]
[1743070281149,8e-05,87570.0,87569.0,0.5867419]
[1743070281150,0.00104001,87570.0,87569.0,0.5867419]
[1743070281347,0.00104001,87570.0,87569.0,0.6169419]
[1743070281548,0.00104001,87570.0,87569.0,2.1169419]
[1743070281861,0.1142606,87570.0,87569.0,2.1169419]
[1743070282555,0.1142606,87570.0,87569.0,2.12833437]
[1743070282951,0.1222606,87570.0,87569.0,2.12833437]
[1743070283143,0.1222606,87570.0,87569.0,1.76753437]
[1743070283347,0.1222606,87570.0,87569.0,2.12833437]
[1743070283654,0.00808,87570.0,87569.0,2.12833437]
[1743070284155,0.1222606,87570.0,87569.0,2.12833437]
[1743070286249,0.00808,87570.0,87569.0,2.12833437]
[1743070286958,0.1222606,87570.0,87569.0,2.12833437]
[1743070288747,0.1552606,87570.0,87569.0,2.12833437]
[1743070293064,0.04108,87570.0,87569.0,2.12833437]
[1743070295367,0.1552606,87570.0,87569.0,2.12833437]
[1743070296161,0.1862606,87570.0,87569.0,0.62797437]
[1743070296356,0.1872606,87570.0,87569.0,0.62797437]
[1743070297064,0.1862606,87570.0,87569.0,0.62797437]
[1743070298068,0.07208,87570.0,87569.0,0.62797437]
[1743070298468,0.07208,87570.0,87569.0,2.12797437]
[1743070298971,0.1862606,87570.0,87569.0,2.12797437]
[1743070299164,0.07208,87570.0,87569.0,2.12797437]
[1743070299367,0.07208,87570.0,87569.0,2.15857437]
[1743070299865,0.1862606,87570.0,87569.0,2.15857437]
[1743070300164,0.1862606,87570.0,87569.0,2.36331929]
[1743070300869,0.1862606,87570.0,87569.0,2.00251929]
[1743070301175,0.1862606,87570.0,87569.0,2.36331929]
[1743070301568,0.07208,87570.0,87569.0,2.36331929]
[1743070303064,0.04108,87570.0,87569.0,2.36331929]
[1743070303870,0.04108,87570.0,87569.0,2.15857437]
[1743070304264,0.04108,87570.0,87569.0,2.15833437]
[1743070305969,0.1552606,87570.0,87569.0,2.15833437]
[1743070306164,0.1859606,87570.0,87569.0,2.15833437]
[1743070306371,0.07178,87570.0,87569.0,2.15833437]
[1743070306571,0.1859606,87570.0,87569.0,2.15833437]
[1743070308774,0.07178,87570.0,87569.0,2.15833437]
[1743070309972,0.0317,87577.0,87569.0,2.04415247]
[1743070310175,0.0570752,87594.0,87577.0,0.1141715]
[1743070310378,0.1222805,87586.0,87580.0,0.1141676]
[1743070310670,0.13779418,87581.0,87580.0,1.6151276]
[1743070310875,0.13779418,87581.0,87580.0,2.0412276]
[1743070311074,0.1711573,87587.0,87585.0,0.114161]
[1743070311272,0.1141819,87569.0,87562.0,0.34202985]
[1743070311474,0.1141819,87569.0,87568.0,0.07414908]
[1743070311475,0.4749819,87569.0,87568.0,0.07414908]
[1743070311678,0.4756619,87569.0,87568.0,0.04804908]
[1743070311978,0.48686241,87569.0,87568.0,0.04804908]
[1743070312184,0.48686241,87569.0,87568.0,8e-08]
[1743070312365,0.1141923,87561.0,87560.0,0.0001713]
[1743070312571,0.0570974,87560.0,87556.0,0.40990517]
[1743070312778,0.05817741,87560.0,87556.0,0.40990517]
[1743070313082,0.1141976,87557.0,87556.0,0.41058517]
[1743070313276,0.11527761,87557.0,87556.0,0.41058517]
[1743070315977,0.11627761,87557.0,87556.0,0.41058517]
[1743070316379,0.11727761,87557.0,87556.0,0.41058517]
[1743070316577,0.1161976,87557.0,87556.0,0.41058517]
[1743070316774,0.1173576,87557.0,87556.0,0.00068]
[1743070321592,0.1173576,87557.0,87556.0,0.1807789]
[1743070321889,0.1173576,87557.0,87556.0,0.06658]
[1743070325887,0.1497576,87557.0,87556.0,0.06658]
[1743070326300,0.1497576,87557.0,87556.0,0.1807789]
[1743070326504,0.1497576,87557.0,87556.0,0.06658]
[1743070330096,0.1485976,87557.0,87556.0,0.06658]
[1743070330304,0.1497576,87557.0,87556.0,0.06658]
[1743070338302,0.1173576,87557.0,87556.0,0.06658]
[1743070345310,0.32221076,87557.0,87556.0,0.06658]
[1743070348615,0.28867459,87557.0,87556.0,0.06658]
[1743070349115,0.28867459,87557.0,87556.0,0.1807789]
[1743070349508,0.28867459,87557.0,87556.0,0.09968]
[1743070353017,0.1173576,87557.0,87556.0,0.09968]
[1743070358222,0.1173576,87557.0,87548.0,0.0001713]
[1743070358223,0.114208,87549.0,87548.0,0.0001713]
[1743070358418,0.1142106,87547.0,87542.0,8e-05]
[1743070358608,0.1156906,87547.0,87546.0,0.20545635]
[1743070358808,0.1475906,87547.0,87546.0,0.20545635]
[1743070361318,0.2125906,87547.0,87546.0,0.20545635]
[1743070361522,0.38204661,87547.0,87546.0,0.00064]
[1743070361724,0.1142119,87546.0,87545.0,0.0322]
[1743070361916,0.1156919,87546.0,87545.0,0.03368]
[1743070362216,0.1814919,87546.0,87545.0,0.06548]
[1743070365320,0.2370293,87546.0,87545.0,0.06548]
[1743070370523,0.2370293,87546.0,87539.0,0.03]
[1743070370524,0.1142197,87540.0,87539.0,0.03]
[1743070370730,0.58773971,87540.0,87539.0,0.03]
[1743070370928,0.1142367,87527.0,87526.0,8e-05]
[1743070371129,0.11615671,87527.0,87526.0,8e-05]
[1743070371330,0.11615671,87527.0,87517.0,0.31906615]
[1743070371331,0.1142484,87518.0,87517.0,0.31906615]
[1743070371615,0.1132484,87518.0,87517.0,1.81906615]
[1743070372426,0.1132484,87518.0,87517.0,1.85166615]
[1743070373333,0.1122484,87518.0,87517.0,1.85366615]
[1743070373722,0.1122484,87518.0,87517.0,1.91776615]
[1743070374635,0.1122484,87518.0,87517.0,1.7129498]
[1743070386440,0.1122484,87518.0,87517.0,1.5987]
[1743070390430,0.21475798,87518.0,87517.0,1.5987]
[1743070390844,0.21675798,87518.0,87517.0,1.5987]
[1743070391840,0.24735798,87518.0,87517.0,0.0987]
[1743070392037,0.27735798,87518.0,87517.0,0.0987]
[1743070392543,0.27735798,87518.0,87517.0,0.004]
[1743070392743,0.114255,87513.0,87512.0,0.00053708]
[1743070392933,0.116255,87513.0,87512.0,0.00053708]
[1743070393139,0.537655,87513.0,87512.0,0.00053708]
[1743070393334,0.537655,87513.0,87512.0,0.00045708]
[1743070393940,0.54407068,87513.0,87512.0,0.00045708]
[1743070394445,0.54207068,87513.0,87512.0,0.00045708]
[1743070394646,0.54607068,87513.0,87512.0,0.00045708]
[1743070395242,0.55007068,87513.0,87512.0,0.00045708]